Cogmind - Beta 11.1 @@@ ROGUE MODE // 2022.09.18 @ 18:46:51 Player: Candesce Result: Self-destructed Performance ------------- Evolutions (3) 1500 Regions Visited (10) 2000 Robots Destroyed (133) 665 Value Destroyed (4538) 4538 Prototype IDs (15) 300 Alien Tech Used (0) 0 Bonus (2225) 2225 TOTAL SCORE: 11228 Bonus ------- High Alert Combat Kills 925 Follower Combat Kills 80 Entered Garrisons 600 Used RIF Installer 1000 Friendly Fire -380 Cogmind --------- Core Integrity 341/700 Matter 217/300 Energy 89/100 System Corruption 10% Temperature Warning (361) Movement Core (950) Ox18 Location -7/Garrison Parts ------- > --- POWER (1) -------- (None) > --- PROPULSION (4) --- (None) > --- UTILITY (6) ------ Improved Heat Sink High-capacity Storage Unit Machine Analyzer Improved Targeting Computer > --- WEAPON (2) ------- Plasma Cannon Gauss Cannon > --- INVENTORY (20) --- Machine Analyzer Transmission Jammer Transmission Jammer Relay Coupler [Grunt] (28) Long-range Tractor Beam Gatling Laser Plasma Cannon Plasma Cannon Plasma Cannon Mini Grenade Launcher Mini Grenade Launcher Heavy Missile Launcher Remote Datajack Plasma Cutter Chainsword Peak State ------------ > --- POWER ------------ Enhanced Nuclear Core > --- PROPULSION ------- Medium Treads Medium Treads Medium Treads Medium Treads > --- UTILITY ---------- Coolant Injector High-capacity Storage Unit Machine Analyzer Improved Targeting Computer Transmission Jammer Layered Light Armor Plating > --- WEAPON ----------- Plasma Cannon Heavy Ion Cannon > --- INVENTORY -------- Improved Deuterium Engine Medium Treads Improved Heat Sink Machine Analyzer Transmission Jammer Relay Coupler [Grunt] Long-range Tractor Beam Gatling Laser Plasma Cannon Plasma Cannon Plasma Cannon Gauss Cannon Mini Grenade Launcher Mini Grenade Launcher Heavy Missile Launcher Remote Datajack Plasma Cutter Chainsword [Rating: 53] Favorites ----------- Power Heavy Ion Engine Engine Heavy Ion Engine Power Core Enhanced Nuclear Core Propulsion Light Treads Treads Light Treads Utility High-capacity Storage Unit Device Cooling System Storage High-capacity Storage Unit Processor Improved Targeting Computer Hackware Relay Coupler [Grunt] Protection Hardened Light Armor Plating Weapon Improved Light Cannon Energy Gun Improved Heavy Laser Energy Cannon Heavy Ion Cannon Ballistic Gun Light Assault Rifle Ballistic Cannon Improved Light Cannon Launcher Mini Grenade Launcher Special Weapon Mining Laser Impact Weapon Power Maul Slashing Weapon Chainsword Special Melee Weapon Improved Datajack Build | -11 -10 -10 -9 -9 -9 -9 -7 -7 -7 -7 ------- Run | Scr Mat Min Mat Sto Gar Rec Fac Gar Fac Gar Slots Evolved 6 | . . . 2 . . . 4 . . . Power . | . . . . . . . . . . . Propulsion 2 | . . . . . . . 2 . . . Utility 4 | . . . 2 . . . 2 . . . Weapon . | . . . . . . . . . . . Parts Attached 126 | 7 13 2 8 24 8 5 16 10 26 7 Power 7 | 1 1 . . 2 . . . 1 1 1 Engine 6 | 1 1 . . 2 . . . 1 . 1 Core 1 | . . . . . . . . . 1 . Reactor . | . . . . . . . . . . . Propulsion 31 | 2 . . 3 7 3 2 4 1 8 1 Treads 31 | 2 . . 3 7 3 2 4 1 8 1 Leg . | . . . . . . . . . . . Wheel . | . . . . . . . . . . . Hover . | . . . . . . . . . . . Flight . | . . . . . . . . . . . Utility 47 | 2 7 1 4 8 2 3 6 3 7 4 Device 22 | 1 3 . 1 5 2 1 5 . 1 3 Storage 4 | 1 1 . . 1 . . . . 1 . Processor 4 | . . . 3 . . . . . 1 . Hackware 6 | . . . . . . 2 . 2 2 . Protection 11 | . 3 1 . 2 . . 1 1 2 1 Artifact . | . . . . . . . . . . . Weapon 41 | 2 5 1 1 7 3 . 6 5 10 1 Energy Gun 5 | . . . . 1 . . 1 1 2 . Energy Cannon 7 | . . . . 2 1 . . . 4 . Ballistic Gun 3 | 2 . . . . . . 1 . . . Ballistic Cannon 14 | . 3 1 1 3 1 . 2 2 . 1 Launcher 5 | . 1 . . 1 1 . . 2 . . Special Weapon 2 | . 1 . . . . . . . 1 . Impact Weapon 2 | . . . . . . . 1 . 1 . Slashing Weapon 1 | . . . . . . . . . 1 . Piercing Weapon . | . . . . . . . . . . . Special Melee Weapon 2 | . . . . . . . 1 . 1 . Unidentified Prototypes 4 | . . . . 2 . . 1 . 1 . Corrupted Parts 3 | . . . . . . 2 . . 1 . System Corruption 9 | . . . . . . 5 . . 4 . Parts Lost 21 | . . . 1 . 2 . 1 4 2 11 Power 3 | . . . . . . . . 1 . 2 Propulsion 9 | . . . 1 . 1 . 1 . 1 5 Utility 7 | . . . . . . . . 3 1 3 Weapon 2 | . . . . . 1 . . . . 1 Highest Loss Streak 11 | . . . 1 . 2 . 1 2 2 11 To Critical Strikes . | . . . . . . . . . . . Average Slot Usage (%) 99 | . 100 100 99 99 99 100 99 98 99 94 Engine 9 | . 14 14 11 11 11 11 7 6 3 1 Core 1 | . . . . . . . . . 3 5 Treads 26 | . 28 28 21 21 21 22 29 29 30 25 Device 9 | . 10 1 . 12 22 21 8 16 2 8 Storage 10 | . 14 14 11 11 11 11 7 7 7 7 Processor 9 | . . . 21 11 11 11 7 7 13 15 Hackware 4 | . . . . . . . 13 4 13 4 Protection 6 | . 3 12 11 8 . . 7 7 7 7 Energy Gun 5 | . . . . 6 11 11 6 9 6 . Energy Cannon 2 | . . . . 3 4 . . . 7 14 Ballistic Cannon 11 | . 27 28 22 12 5 11 6 4 . . Naked Turns . | . . . . . . . . . . . Heaviest Build 78 | 11 54 58 59 65 65 65 75 78 71 72 Greatest Support 112 | 40 40 40 40 40 40 40 80 80 112 112 Greatest Overweight (x) 2 | . 1 1 2 2 1 1 . . . . Average Overweight (x) . | . . 1 1 1 1 1 . . . . Largest Inventory Capacity 20 | 8 20 20 20 20 20 20 20 20 20 20 Average Capacity 19 | 7 12 20 20 20 20 20 20 20 20 20 Most Carried 20 | 2 12 16 20 20 20 20 20 20 20 20 Average Carried 17 | 1 9 14 18 19 18 19 19 18 19 18 Final Capacity 20 | 8 20 20 20 20 20 20 20 20 20 20 Final Carried 20 | 2 12 16 20 20 20 20 18 16 20 15 Class Distribution -------------------- 80% | Mutant 9% | Bothacker-Mutant 8% | Scavenger-Mutant Dominant Class ---------------- Mutant | -10/Materials Mutant | -10/Mines Mutant | -9/Materials Mutant | -9/Storage Mutant | -9/Garrison Mutant | -9/Recycling Scavenger-Mutant | -7/Factory Bothacker-Mutant | -7/Garrison Mutant | -7/Factory Mutant | -7/Garrison Resources | -11 -10 -10 -9 -9 -9 -9 -7 -7 -7 -7 ----------- Run | Scr Mat Min Mat Sto Gar Rec Fac Gar Fac Gar Matter Collected 2738 | 320 318 159 323 516 136 . 231 350 284 101 Remotely 326 | . . . . 326 . . . . . . Salvage Created 4265 | 205 252 28 343 931 791 . 311 302 679 423 Parts 240 | 15 17 . 26 54 41 . 15 14 42 16 Haulers Intercepted 7 | . 1 . 1 4 . . . . 1 . Recyclers Shooed 6 | . . 1 . 5 . . . . . . Parts Field Recycled . | . . . . . . . . . . . Retrieved Matter . | . . . . . . . . . . . Parts Self-Destructed . | . . . . . . . . . . . Prevented . | . . . . . . . . . . . Kills | -11 -10 -10 -9 -9 -9 -9 -7 -7 -7 -7 ------- Run | Scr Mat Min Mat Sto Gar Rec Fac Gar Fac Gar Combat Hostiles Destroyed 107 | . 8 5 12 15 21 . 9 16 13 8 Guns 30 | . . . . 4 10 . 3 6 7 . Cannons 61 | . 8 5 12 8 8 . 6 1 6 7 AOE 15 | . . . . 3 3 . . 9 . . Classes Destroyed 14 | 3 3 2 2 . 1 . 2 . 1 . Worker 4 | 1 1 . 1 . . . . . 1 . Builder 1 | . . . . . . . 1 . . . Tunneler 6 | 5 . . . . . . . . 1 . Hauler 7 | . 1 . 1 4 . . . . 1 . Recycler 6 | 1 1 . . 3 . . 1 . . . Watcher 3 | . . . 2 . . . . . 1 . Swarmer 30 | . 5 . . 3 3 . 3 13 3 . Grunt 45 | . 3 . 10 4 13 . 4 5 1 5 Duelist 2 | . . . . . 2 . . . . . Sentry 20 | . . . 2 8 3 . 1 . 4 2 Demolisher 2 | . . 2 . . . . . . . . Hunter 1 | . . . . . . . . . 1 . Programmer 6 | . . . . . . . 1 . 4 1 Assembled 3 | . . 3 . . . . . . . . Best Kill Streak 11 | 2 4 2 4 9 4 . 4 11 3 3 Combat Bots Only 11 | . 4 2 4 4 4 . 3 11 3 3 Max Kills in Single Turn 4 | 1 1 1 2 2 2 . 2 4 2 1 Gunslinging . | . . . . . . . . . . . Exploded 4 | . . . . 2 2 . . 4 . . Melee . | . . . . . . . . . . . Uniques/NPCs Destroyed . | . . . . . . . . . . . Combat | -11 -10 -10 -9 -9 -9 -9 -7 -7 -7 -7 -------- Run | Scr Mat Min Mat Sto Gar Rec Fac Gar Fac Gar Damage Taken 6049 | . 275 147 557 399 816 . 547 598 958 1752 Core 611 | . 46 17 36 49 104 . 30 74 87 168 Absorbed by Shields 120 | . . . . 20 . . . 100 . . Regen/Repaired (Parts) 591 | . . . 125 198 . . . . 268 . Core Remaining (%) 75 | 100 . 74 . . . 52 . . . . Volleys Fired 338 | 25 34 10 45 40 55 3 24 27 45 30 Largest 2 | 2 2 2 2 2 2 2 2 2 2 2 Hottest 145 | 40 100 78 78 133 133 104 124 145 145 145 Shots Fired 633 | 50 66 20 89 65 105 6 48 44 83 57 Gun 206 | 50 . . . 13 53 3 24 24 39 . Cannon 414 | . 65 20 89 50 50 3 24 16 40 57 Launcher 8 | . . . . 2 2 . . 4 . . Special 5 | . 1 . . . . . . . 4 . Kinetic 322 | 50 65 20 89 41 10 3 24 16 . 4 Thermal 299 | . 1 . . 22 93 3 24 24 79 53 Explosive 8 | . . . . 2 2 . . 4 . . Electromagnetic . | . . . . . . . . . . . Robot Hit Streak 18 | 8 8 2 12 12 15 1 13 18 17 12 Robot Miss Streak 9 | 2 7 3 3 2 2 5 9 7 2 2 Penetration Max . | . . . . . . . . . . . Secondary Targets . | . . . . . . . . . . . Shots Hit Robots 442 | 35 32 8 58 40 81 1 45 35 69 38 Core Hits 236 | 13 13 6 18 27 24 1 38 46 37 13 Critical Kills 1 | . . . . . . . . . . 1 Critical Parts Destroyed . | . . . . . . . . . . . Critical Strikes 7 | . 2 . 1 1 1 . 1 . . 1 Burn 2 | . . . . 1 1 . . . . . Meltdown 1 | . . . . . . . . . . 1 Blast 4 | . 2 . 1 . . . 1 . . . Melee Attacks 10 | . . . . . . . 3 . 7 . Impact 3 | . . . . . . . 2 . 1 . Slashing 4 | . . . . . . . . . 4 . Piercing . | . . . . . . . . . . . Sneak Attacks 3 | . . . . . . . 1 . 2 . Combat Hostiles . | . . . . . . . . . . . Follow-up Attacks . | . . . . . . . . . . . Damage Inflicted 11250 | 289 778 218 1339 1168 2059 25 900 1563 1867 1044 Guns 3751 | 289 . . . 284 1208 . 431 509 1030 . Cannons 6131 | . 760 192 1339 650 694 24 431 193 804 1044 Explosions 1241 | . . . . 223 157 . . 861 . . Melee . | . . . . . . . . . . . Ramming 127 | . 18 26 . 11 . 1 38 . 33 . Kinetic 3963 | 289 760 192 1339 569 141 24 431 193 . 25 Thermal 5919 | . . . . 365 1761 . 431 509 1834 1019 Explosive 1241 | . . . . 223 157 . . 861 . . Electromagnetic . | . . . . . . . . . . . Impact . | . . . . . . . . . . . Slashing . | . . . . . . . . . . . Piercing . | . . . . . . . . . . . Highest Corruption 10 | . . . . . . 5 3 3 10 10 Average Corruption 6 | . . . . . . 4 2 3 7 10 Corruption Purged . | . . . . . . . . . . . Corruption Blocked . | . . . . . . . . . . . Effects 83 | . . . . . . . 7 10 61 5 Message Errors 24 | . . . . . . . 1 5 17 1 Matter Fused 19 | . . . . . . . 4 2 11 2 Heat Flow Errors 12 | . . . . . . . . 1 10 1 Energy Discharges 9 | . . . . . . . 2 1 6 . Parts Rejected 1 | . . . . . . . . 1 . . Data Loss (minor) 10 | . . . . . . . . . 10 . Data Loss (major) 2 | . . . . . . . . . 2 . Misfires 4 | . . . . . . . . . 3 1 Weapon Failures 2 | . . . . . . . . . 2 . Overload Shots . | . . . . . . . . . . . Overflow Damage 104 | . 5 . 3 3 17 . 1 11 6 58 Projectiles 93 | . 5 . 3 3 17 . 1 . 6 58 Explosions 11 | . . . . . . . . 11 . . Melee . | . . . . . . . . . . . Knockbacks 34 | . 3 1 10 1 . . 9 9 1 . Impact 2 | . . . . . . . 1 . 1 . Kinetic 32 | . 3 1 10 1 . . 8 9 . . Secondary . | . . . . . . . . . . . Self-Inflicted Damage 44 | . . . . 7 . . . 37 . . Shots 2 | . . . . 1 . . . 1 . . Rammed 21 | . 3 5 . 4 . 1 3 . 5 . Targets Rammed 22 | . 3 5 . 4 . 1 3 . 6 . Kicked . | . . . . . . . . . . . Crushed 1 | . . . . . . . . . 1 . Highest Temperature 412 | . 264 132 378 184 78 . 285 203 412 361 Average Temperature 106 | . 87 48 148 44 24 . 91 21 130 168 Received Heat Transfer 1895 | . 12 . 327 141 267 . 102 167 141 738 Effects 16 | . . . 7 . . . . . 6 3 Shutdowns 2 | . . . 1 . . . . . 1 . Energy Bleed 3 | . . . 3 . . . . . . . Interference 9 | . . . 2 . . . . . 5 2 Matter Decay 1 | . . . . . . . . . . 1 Damage (minor) 1 | . . . 1 . . . . . . . Siege Activations . | . . . . . . . . . . . Robots Corrupted . | . . . . . . . . . . . Combat Hostiles . | . . . . . . . . . . . Parts Fried . | . . . . . . . . . . . Impact Corruptions . | . . . . . . . . . . . Robots Melted 1 | . . . . . . . . . . 1 Combat Hostiles 1 | . . . . . . . . . . 1 Parts Melted 28 | . . . . 1 5 . . 1 13 8 Heat Transferred 10142 | . . . . 629 2812 . 822 1099 3112 1668 Parts Sabotaged . | . . . . . . . . . . . Parts Stolen . | . . . . . . . . . . . Parts Stripped . | . . . . . . . . . . . Power Chain Reactions . | . . . . . . . . . . . Missiles Intercepted . | . . . . . . . . . . . Alert | -11 -10 -10 -9 -9 -9 -9 -7 -7 -7 -7 ------- Run | Scr Mat Min Mat Sto Gar Rec Fac Gar Fac Gar Peak Influence 1164 | 35 311 106 396 334 758 501 1118 1164 778 479 Initial 1038 | . 22 50 . 94 156 340 1038 751 611 364 Average 425 | 15 129 21 206 179 547 393 1004 1030 575 423 Maximum Alert Level 4 | . 1 . 1 1 3 2 4 4 3 2 Low Security (%) 33 | 100 82 100 50 54 4 . . . . . Level 1 15 | . 17 . 49 45 16 53 . . . 20 Level 2 29 | . . . . . 58 46 . . 87 79 Level 3 14 | . . . . . 20 . 93 31 12 . Level 4 5 | . . . . . . . 6 68 . . Level 5 . | . . . . . . . . . . . High Security . | . . . . . . . . . . . Max Security . | . . . . . . . . . . . Squads Dispatched 15 | . 1 . 3 2 . . 2 . 7 . Investigation 3 | . . . 1 1 . . . . 1 . Extermination 6 | . . . . . . . 1 . 5 . Reinforcement 6 | . 1 . 2 1 . . 1 . 1 . Assault . | . . . . . . . . . . . Garrison . | . . . . . . . . . . . Intercept . | . . . . . . . . . . . Searches Triggered 2 | . . . . . . . 1 . 1 . Construction Impeded . | . . . . . . . . . . . Haulers Reinforced . | . . . . . . . . . . . Active Scanning Responses . | . . . . . . . . . . . Cargo Convoy Interrupts . | . . . . . . . . . . . Stealth | -11 -10 -10 -9 -9 -9 -9 -7 -7 -7 -7 --------- Run | Scr Mat Min Mat Sto Gar Rec Fac Gar Fac Gar Distress Signals 9 | . . . 4 2 . . 3 . . . Communications Jammed . | . . . . . . . . . . . Distress Signals . | . . . . . . . . . . . Times Spotted 180 | . 17 5 19 27 21 19 17 25 19 11 Peak Tracking Total 9 | . 4 2 9 5 5 7 6 9 3 5 Tactical Retreats 6 | . 1 . 1 . 1 . 3 . . . Traps | -11 -10 -10 -9 -9 -9 -9 -7 -7 -7 -7 ------- Run | Scr Mat Min Mat Sto Gar Rec Fac Gar Fac Gar Traps Triggered 9 | . . . . 5 2 . 1 . 1 . Indirectly . | . . . . . . . . . . . Trap Hack Attempts . | . . . . . . . . . . . Triggered . | . . . . . . . . . . . Disarmed . | . . . . . . . . . . . Reprogrammed . | . . . . . . . . . . . Reused . | . . . . . . . . . . . Traps Extracted . | . . . . . . . . . . . Installed . | . . . . . . . . . . . Triggered . | . . . . . . . . . . . Machines | -11 -10 -10 -9 -9 -9 -9 -7 -7 -7 -7 ---------- Run | Scr Mat Min Mat Sto Gar Rec Fac Gar Fac Gar Machines Disabled 7 | . 1 . 1 2 1 . . 1 . 1 Max in Single Turn 1 | . 1 . 1 1 1 . . 1 . 1 Garrison Relay 2 | . . . . . 1 . . 1 . . Machines Sabotaged . | . . . . . . . . . . . Garrisons Compromised . | . . . . . . . . . . . Overloaded Fab Kills . | . . . . . . . . . . . Hacking | -11 -10 -10 -9 -9 -9 -9 -7 -7 -7 -7 --------- Run | Scr Mat Min Mat Sto Gar Rec Fac Gar Fac Gar Machines Accessed 38 | . 3 . 3 12 . 7 3 . 10 . Terminals 23 | . 3 . 2 9 . 4 1 . 4 . Fabricators 2 | . . . . . . . 1 . 1 . Repair Stations 4 | . . . 1 1 . . . . 2 . Recycling Units 4 | . . . . 1 . 3 . . . . Scanalyzers 2 | . . . . . . . . . 2 . Garrison Access 3 | . . . . 1 . . 1 . 1 . Total Hacks 97 | . 10 . 8 33 . 16 6 . 24 . Successful 60 | . 5 . 5 22 . 10 5 . 13 . Failed 37 | . 5 . 3 11 . 6 1 . 11 . Catastrophic 6 | . 1 . 1 1 . . 1 . 2 . Database Lockouts . | . . . . . . . . . . . Manual 30 | . 7 . 1 11 . 3 1 . 7 . Terminals 61 | . 10 . 4 25 . 11 1 . 10 . Fabricators 7 | . . . . . . . 4 . 3 . Repair Stations 16 | . . . 4 5 . . . . 7 . Recycling Units 7 | . . . . 2 . 5 . . . . Scanalyzers 3 | . . . . . . . . . 3 . Garrison Access 3 | . . . . 1 . . 1 . 1 . Terminal Hacks 27 | . 4 . 1 14 . 5 . . 3 . Part Schematic 7 | . . . . 4 . 2 . . 1 . Robot Schematic 2 | . 1 . . 1 . . . . . . Robot Analysis 1 | . . . . . . 1 . . . . Prototype ID Bank 6 | . 2 . . 2 . . . . 2 . Open Door 3 | . . . . 3 . . . . . . Terminal Index 1 | . . . . 1 . . . . . . Scanalyzer Index 1 | . . . . . . 1 . . . . Unreport Threat 2 | . . . . 2 . . . . . . Locate Traps 2 | . 1 . 1 . . . . . . . Recall Investigation 1 | . . . . 1 . . . . . . Hauler Manifests 1 | . . . . . . 1 . . . . Fabricator Hacks 7 | . . . . . . . 4 . 3 . Network Status 1 | . . . . . . . . . 1 . Load Schematic 3 | . . . . . . . 2 . 1 . Build 3 | . . . . . . . 2 . 1 . Repair Station Hacks 10 | . . . 3 4 . . . . 3 . Scan Component 7 | . . . 2 2 . . . . 3 . Repair 3 | . . . 1 2 . . . . . . Recycling Unit Hacks 3 | . . . . 1 . 2 . . . . Report Inventory 3 | . . . . 1 . 2 . . . . Scanalyzer . | . . . . . . . . . . . Garrison Access Hacks 3 | . . . . 1 . . 1 . 1 . Unlock Access 3 | . . . . 1 . . 1 . 1 . Unauthorized Hacks 10 | . 1 . 1 2 . 3 . . 3 . Terminals 5 | . 1 . 1 1 . . . . 2 . Botnet 5 | . 1 . 1 1 . . . . 2 . Fabricators . | . . . . . . . . . . . Repair Stations . | . . . . . . . . . . . Recycling Units 4 | . . . . 1 . 3 . . . . Tunnel 4 | . . . . 1 . 3 . . . . Scanalyzers 1 | . . . . . . . . . 1 . Extract 1 | . . . . . . . . . 1 . Garrison Access . | . . . . . . . . . . . Data Cores Recovered . | . . . . . . . . . . . Used . | . . . . . . . . . . . Hacking Detections 27 | . 3 . 3 7 . 4 1 . 9 . Full Trace Events 2 | . . . 1 . . 1 . . . . Feedback Events . | . . . . . . . . . . . Feedback Blocked . | . . . . . . . . . . . Robot Schematics Acquired 2 | . 1 . . 1 . . . . . . Robots Built 8 | . . . . . . . 8 . . . Authchips 2 | . . . . . . . 2 . . . Time 80 | . . . . . . . 80 . . . Total Robot Build Rating 8 | . . . . . . . 8 . . . Part Schematics Acquired 8 | . . . . 4 . 2 . . 2 . Parts Built 2 | . . . . . . . . . 2 . Authchips 1 | . . . . . . . . . 1 . Time 36 | . . . . . . . . . 36 . Total Part Build Rating 6 | . . . . . . . . . 6 . Parts Repaired 3 | . . . 1 2 . . . . . . Time 90 | . . . 32 58 . . . . . . Parts Recycled . | . . . . . . . . . . . Recycled Matter . | . . . . . . . . . . . Retrieved Matter . | . . . . . . . . . . . Retrieved Components . | . . . . . . . . . . . Parts Scanalyzed . | . . . . . . . . . . . Part Schematics Acquired . | . . . . . . . . . . . Parts Damaged . | . . . . . . . . . . . Bothacking | -11 -10 -10 -9 -9 -9 -9 -7 -7 -7 -7 ------------ Run | Scr Mat Min Mat Sto Gar Rec Fac Gar Fac Gar Used RIF Installer 2 | . . . . . 1 . . 1 . . Program Shield 1 | . . . . . . . . 1 . . Robots Hacked 4 | . . . . . . . 1 . 3 . Non-combat 2 | . . . . . . . 1 . 1 . Combat 2 | . . . . . . . . . 2 . Robot Hacks Applied 5 | . . . . . . . 1 . 4 . find_chute 1 | . . . . . . . 1 . . . find_garrison 1 | . . . . . . . . . 1 . streamctrl_high 2 | . . . . . . . . . 2 . formatsys_low 1 | . . . . . . . . . 1 . Relay Couplers Released 8 | . . . . . 5 . . 3 . . Machine Destruction 8 | . . . . . 5 . . 3 . . Attached 3 | . . . . . . . . 2 1 . Fabnet Peak Effective % . | . . . . . . . . . . . Robots Rewired . | . . . . . . . . . . . Allies Hacked . | . . . . . . . . . . . Hacks Repelled . | . . . . . . . . . . . Allies | -11 -10 -10 -9 -9 -9 -9 -7 -7 -7 -7 -------- Run | Scr Mat Min Mat Sto Gar Rec Fac Gar Fac Gar Total Allies 11 | . . . . . . . 8 . 3 . Largest Group 8 | . . . . . . . 8 8 2 . Highest-Rated Group 40 | . . . . . . . 40 40 32 . Highest-Rated Ally 16 | . . . . . . . 5 5 16 . Total Orders 13 | . . . . . 6 . 3 3 1 . AID 1 | . . . . . . . . . 1 . EXPLORE 11 | . . . . . 5 . 3 3 . . RETURN 1 | . . . . . 1 . . . . . Ally Attacks 57 | . . . . . . . 4 50 3 . Total Damage 307 | . . . . . . . 22 243 42 . Kills 7 | . . . . . . . 1 6 . . Allies Corrupted . | . . . . . . . . . . . Allies Melted . | . . . . . . . . . . . Intel | -11 -10 -10 -9 -9 -9 -9 -7 -7 -7 -7 ------- Run | Scr Mat Min Mat Sto Gar Rec Fac Gar Fac Gar Robot Analysis Total 1 | . . . . . . 1 . . . . Derelict Logs Recovered 2 | . . 2 . . . . . . . . Drone Launches 13 | . . . . . 6 . 3 4 . . Drone Recoveries 6 | . . . . . 2 . 2 2 . . Exploration | -11 -10 -10 -9 -9 -9 -9 -7 -7 -7 -7 ------------- Run | Scr Mat Min Mat Sto Gar Rec Fac Gar Fac Gar Turns Passed 9305 | 231 682 1313 585 1310 1039 489 719 736 2002 199 Spaces Moved 3929 | 95 285 518 159 439 343 194 369 393 1071 63 Core 2 | 2 . . . . . . . . . . Treads 3927 | 93 285 518 159 439 343 194 369 393 1071 63 Legs . | . . . . . . . . . . . Wheels . | . . . . . . . . . . . Hover . | . . . . . . . . . . . Flight . | . . . . . . . . . . . Fastest Speed 50 | 50 160 240 240 240 240 240 160 160 160 160 Average Speed 195 | 157 182 240 241 240 240 240 160 160 160 160 Slowest Speed 320 | 160 240 240 320 320 240 240 160 160 160 160 Overloaded Moves . | . . . . . . . . . . . Propulsion Burnouts . | . . . . . . . . . . . Robots Hopped . | . . . . . . . . . . . Cave-ins Triggered . | . . . . . . . . . . . Exploration Rate (%) 48 | 8 57 96 16 84 81 49 14 73 32 18 Regions Visited 10 Branch Regions 3 Pre-discovered Areas 6 | . . 1 . 2 . 3 . . . . Known Exits Taken 4 | . . . 1 1 . . 1 . 1 . Unknown Exits Taken 4 | 1 1 1 . . . 1 . . . . Scrap Searched 3 | . . 3 . . . . . . . . Spaces Dug 43 | . 1 . . 17 4 . 2 14 5 . Terrain Destroyed 71 | . 7 4 2 20 4 2 2 19 11 . Melee 7 | . . . . . . . 2 . 5 . Projectile 24 | . 7 4 2 3 . 2 . . 6 . AOE 40 | . . . . 17 4 . . 19 . . Terrain Rammed . | . . . . . . . . . . . Walls Destroyed . | . . . . . . . . . . . Machines Disabled . | . . . . . . . . . . . Actions | -11 -10 -10 -9 -9 -9 -9 -7 -7 -7 -7 --------- Run | Scr Mat Min Mat Sto Gar Rec Fac Gar Fac Gar Total 4897 | 133 373 561 274 632 455 211 440 449 1265 104 Wait 313 | 5 20 23 50 81 38 . 7 18 68 3 Move 3922 | 94 284 517 158 439 342 193 369 392 1071 63 Hop . | . . . . . . . . . . . Pick Up 88 | 2 13 4 8 19 4 5 11 2 19 1 Fast Attach 22 | 7 2 . 2 8 . 1 . 1 1 . Attach 30 | . . . 3 3 3 1 8 4 3 5 Detach 1 | . . . 1 . . . . . . . Swap 74 | . 11 2 3 13 5 3 8 5 22 2 Drop 72 | . 6 . 4 24 4 4 7 . 23 . Fire 338 | 25 34 10 45 40 55 3 24 27 45 30 Melee 10 | . . . . . . . 3 . 7 . Ram . | . . . . . . . . . . . Kick . | . . . . . . . . . . . Crush 22 | . 3 5 . 4 . 1 3 . 6 . Escape Stasis 5 | . . . . 1 4 . . . . . Rewire . | . . . . . . . . . . . Trap . | . . . . . . . . . . . Miscellaneous . | . . . . . . . . . . . Route ------- -11/Scrapyard -10/Materials (discovered 3 exits: *Mat x2 / [*Min]) -10/Mines (discovered 2 exits: *Mat x2) -9/Materials (discovered 5 exits: Mat / Min x2 / *Sto x2) -9/Storage (discovered 2 exits: *Mat / Gar) -9/Garrison (discovered 2 exits: *Rec x2) -9/Recycling -7/Factory -7/Garrison (discovered 3 exits: *Fac x3) -7/Factory (discovered 3 exits: [*Fac x2] / Gar) -7/Garrison History --------- Turn | Location | Event 15 | -11/Scrapyard | Discovered new exit (range 15) 232 | -11/Scrapyard | Entered Materials 311 | -10/Materials | Build established: Mutant 522 | -10/Materials | Discovered new exit (range 8) 759 | -10/Materials | Discovered new exit (range 7) 811 | -10/Materials | Discovered new exit (range 16) 914 | -10/Materials | Entered Mines 1025 | -10/Mines | Assembled infested the area 1030 | -10/Mines | Assisted by a Guerilla fighting off Assembled 1503 | -10/Mines | Learned 8 Materials zone layouts 1709 | -10/Mines | Learned Materials security intel 1980 | -10/Mines | Discovered new exit (range 12) 1986 | -10/Mines | Learned location of Storage (-9) 2206 | -10/Mines | Discovered new exit (range 9) 2227 | -10/Mines | Entered Materials 2227 | -9/Materials | Evolved 2 slots: Utility x2 2228 | -9/Materials | Identified exit to Materials 2228 | -9/Materials | Identified exit to Mines 2228 | -9/Materials | Identified exit to Storage 2612 | -9/Materials | Discovered exit to Storage (range 14) 2739 | -9/Materials | Repaired Imp. Light Cannon 2812 | -9/Materials | Entered Storage 3008 | -9/Storage | Repaired Imp. Light Cannon 3035 | -9/Storage | Repaired Lgt. Treads 3875 | -9/Storage | Discovered exit to Materials (range 16) 4122 | -9/Storage | Identified exit to Garrison 4122 | -9/Storage | Entered Garrison 4204 | -9/Garrison | Triggered checkpoint 4226 | -9/Garrison | Triggered checkpoint 4288 | -9/Garrison | Triggered checkpoint 4398 | -9/Garrison | Triggered checkpoint 4477 | -9/Garrison | Discovered new exit (range 24) 4566 | -9/Garrison | Triggered checkpoint 4571 | -9/Garrison | Discovered new exit (range 35) 4592 | -9/Garrison | Triggered checkpoint 4596 | -9/Garrison | Triggered checkpoint 4729 | -9/Garrison | Installed Relay Interface Framework 4952 | -9/Garrison | Garrison Relay disabled 5161 | -9/Garrison | Entered Recycling 5202 | -9/Recycling | Spotter reported a threat 5202 | -9/Recycling | Spotter reported a threat 5216 | -9/Recycling | Spotter reported a threat 5264 | -9/Recycling | Spotter reported a threat 5266 | -9/Recycling | Spotter reported a threat 5315 | -9/Recycling | Spotter reported a threat 5317 | -9/Recycling | Spotter reported a threat 5320 | -9/Recycling | Spotter reported a threat 5325 | -9/Recycling | Spotter reported a threat 5334 | -9/Recycling | Spotter reported a threat 5336 | -9/Recycling | Spotter reported a threat 5355 | -9/Recycling | Spotter reported a threat 5368 | -9/Recycling | Spotter reported a threat 5371 | -9/Recycling | Spotter reported a threat 5373 | -9/Recycling | Spotter reported a threat 5415 | -9/Recycling | Spotter reported a threat 5424 | -9/Recycling | Spotter reported a threat 5426 | -9/Recycling | Spotter reported a threat 5496 | -9/Recycling | Spotter reported a threat 5502 | -9/Recycling | Spotter reported a threat 5503 | -9/Recycling | Spotter reported a threat 5510 | -9/Recycling | Spotter reported a threat 5521 | -9/Recycling | Spotter reported a threat 5563 | -9/Recycling | Spotter reported a threat 5627 | -9/Recycling | Discovered new exit (range 6) 5650 | -9/Recycling | Entered Factory 5650 | -7/Factory | Evolved 4 slots: Propulsion x2, Utility x2 5941 | -7/Factory | Build established: Scavenger-Mutant 6050 | -7/Factory | Search patrols dispatched 6285 | -7/Factory | Fabricated S-10 Pest? 6346 | -7/Factory | Fabricated S-10 Pest? 6369 | -7/Factory | Identified exit to Garrison 6369 | -7/Factory | Entered Garrison 6369 | -7/Garrison | Accompanied by 8 allies 6414 | -7/Garrison | Triggered checkpoint 6502 | -7/Garrison | Garrison Relay disabled 6624 | -7/Garrison | Destroyed 11 combat bots 6642 | -7/Garrison | Triggered checkpoint 6700 | -7/Garrison | Discovered new exit (range 14) 6817 | -7/Garrison | Build established: Bothacker-Mutant 6920 | -7/Garrison | Discovered new exit (range 14) 6998 | -7/Garrison | Triggered checkpoint 7075 | -7/Garrison | Discovered new exit (range 9) 7097 | -7/Garrison | Expanded RIF knowledge: Program Shield 7105 | -7/Garrison | Entered Factory 7696 | -7/Factory | Build established: Mutant 7905 | -7/Factory | Search patrols dispatched 8018 | -7/Factory | System corruption reached 10% 8054 | -7/Factory | Fabricated Lrn. Tractor Beam? 8324 | -7/Factory | Discovered new exit (range 11) 8664 | -7/Factory | Discovered new exit (range 4) 9107 | -7/Factory | Identified exit to Garrison 9107 | -7/Factory | Entered Garrison 9132 | -7/Garrison | Triggered checkpoint 9229 | -7/Garrison | Triggered checkpoint 9232 | -7/Garrison | Triggered checkpoint 9289 | -7/Garrison | Core integrity fell below 50% 9306 | -7/Garrison | Self-destructed Last Messages --------------- 09280_ Y-54 Guardian heat damages Lgt. Treads, Imp. Heat Sink, Lgt. Treads, Imp. Heat Sink. 09281_ Med. Treads destroyed. 09282_ Y-54 Guardian heat damages Lgt. Treads. 09283_ Destroyed Lgt. Treads. 09283_ Melted Imp. Light Armor Plating. 09284_ Coolant Injector melts away. 09284_ Hvy. Ion Cannon destroyed. 09287_ System corrupted: Matter fused (-10). 09287_ Med. Treads destroyed. 09287_ Flak Gun melted. 09287_ Gatling Laser melted. 09287_ Y-54 Guardian destroyed. 09290_ G-47 Trooper destroyed. 09299_ Overheating: System interference. 09299_ Imp. Heat Sink temporarily disabled. 09299_ Gauss Cannon temporarily disabled. 09303_ Overheating: Matter decay (-39). 09304_ Imp. Deuterium Engine destroyed. 09304_ Lyr. Light Armor Plating destroyed. Map ----- +----------------------------------------------------+ | ???????????????# #?????????????????????????????? | | ???????????????# #?????????????????????????????? | | ???????????????# #?????????????????????????????? | | ???????????????# #?????????????????????????????? | | ????#?????###### #?????????????????????????????? | | ????# ????# ##*[ #?????????????????????????????? | | ##### ##### ## = #?????????????????????????????? | | *% %* #?????????????????????????????? | | [ #?????????????????????????????? | | ################ #?????????????????????????????? | | ???????????????# #?????????????????????????????? | | ???????????????# #?????????????????????????????? | | ???????????????# #?????????????????????????????? | | ????############ #?????????????????????????????? | | ??? "?????????????????????????????? | | ??? #?????????????????????????????? | | ????# #####"""## #?????????????????????????????? | | ???????????????# #?????????????????????????????? | | ???????????????# ^#?????????????????????????????? | | ???????????????# #??????????#??????????????????? | | ???????????????# #??#?????? #?????#????????????? | | ???????????????# #??# ???? #??? #????????????? | | ???????????????# ####;####;###[ ## #????????? | | ???????????????# [ ! %! #???????? | | ???????????????# *%=g* = ???????? | | ???????????????# @%%= % s s ???????? | | ???????????????############ ## ## #???????? | | ??????????????????????????? #??? #????????????? | | ??????????????????????????? ?????????????????? | | ??????????????????????????? ???????????????? | | ???????????????????????????? ??????????????? | | ???????????????????????????? ????????????? | | ???????????????????????????? ## ##???????????? | | ???????????????????????????? #? #????????????? | | ????????????????????????????? ?? ???????????? | | ????????????????????????????? ??? ???????????? | | ????????????????????????????? ?? ???????????? | | ????????????????????????????? ##???"?????????????? | | ??????????????????????????????#??????????????????? | | ?????????????????????????????????????????????????? | | ?????????????????????????????????????????????????? | | ?????????????????????????????????????????????????? | | ?????????????????????????????????????????????????? | | ?????????????????????????????????????????????????? | | ?????????????????????????????????????????????????? | | ?????????????????????????????????????????????????? | | ?????????????????????????????????????????????????? | | ?????????????????????????????????????????????????? | | ?????????????????????????????????????????????????? | | ?????????????????????????????????????????????????? | +----------------------------------------------------+ Best States ------------- Heat Dissipation 56 Coolant Potential 65 Energy Generation 17 Energy Capacity 300 Matter Stores 300 Matter Capacity 300 Sight Range 16 Terrain Scan Density 10 Jamming Range 12 Armor Coverage 225 Evasion (%) 40 Targeting Accuracy 12 Recoil Reduction 4 Relay Coupler Types 2 Relay Coupler Value 54 Authchip Count 4 Item Schematics ----------------- Mni. Grenade Launcher | -9/Storage | Hacked Hpw. Tractor Beam | -9/Storage | Hacked Med. Armor Plating | -9/Storage | Hacked Lrn. Tractor Beam | -9/Storage | Hacked Imp. Cooling System | -9/Recycling | Hacked System Shield | -9/Recycling | Hacked Adv. EMP Blaster | -7/Factory | Extracted Enh. Gauss Cannon | -7/Factory | Hacked Robot Schematics ------------------ S-10 Pest | -10/Materials | Hacked M-13 Machinist | -9/Storage | Hacked Fabricated ------------ S-10 Pest | x4 | -7/Factory | Authchip S-10 Pest | x4 | -7/Factory | Authchip Lrn. Tractor Beam | x2 | -7/Factory | Authchip Alien Tech Used ----------------- None Achievements -------------- None Challenges ------------ None Game ------ Seed ShrapnelCompositeWheel Manual? 0 Play Time 01:38:04 Cumulative 77.9 hours Start 2022.09.17 @ 22:29:56 End 2022.09.18 @ 18:46:51 Sessions 7 Manual Loads 0 Difficulty Rogue Special Mode None Game No. 139 Rogue 139 Adventurer 0 Explorer 0 Win Type - Total 1 Types 0/0/0/1/0/0/0/0/0 Lore% 56 Gallery% 64 Achievement% 48 Wizard Run 0 Options --------- ASCII 0 Keyboard 0 Movement Numpad Keybinds 0 Fullscreen 1 Font 14/SmallcapsGlow Map View 84x54 Tactical HUD 1 Map Filters NONE Filters NONE Steam 1 RUN: cb6b49ca-c2d9-4158-9ba5-eeceac56f8d8